[Event "Titled Tuesday Blitz March 29 Late 2022"]
[White "Sjugirov, Sanan"]
[Black "Quintiliano Pinto, Renato R."]
[WhiteFideId "4189302"]
[BlackFideId "2117568"]
[WhiteElo "2602"]
[BlackElo "2439"]
[Result "0-1"]
[Round "11"]
[TimeControl "180+1"]
[Date "2022.03.29"]
[WhiteClock "0:00:49"]
[BlackClock "0:00:16"]

1. e4 {[%clk 0:03:00]}  c5 {[%clk 0:02:59]} 2. Nf3 {[%clk 0:03:01]}  d6 {[%clk 0:03:00]} 3. Bb5+ {[%clk 0:03:00]}  Bd7 {[%clk 0:02:59]} 4. Bxd7+ {[%clk 0:03:00]}  Nxd7 {[%clk 0:02:59]} 5. O-O {[%clk 0:02:58]}  Ngf6 {[%clk 0:03:00]} 6. Qe2 {[%clk 0:02:59]}  e6 {[%clk 0:02:59]} 7. c3 {[%clk 0:02:59]}  Rc8 {[%clk 0:02:58]} 8. d4 {[%clk 0:02:57]}  cxd4 {[%clk 0:02:59]} 9. cxd4 {[%clk 0:02:58]}  Nb6 {[%clk 0:02:59]} 10. Nc3 {[%clk 0:02:54]}  Be7 {[%clk 0:02:57]} 11. Rd1 {[%clk 0:02:50]}  O-O {[%clk 0:02:56]} 12. h3 {[%clk 0:02:45]}  Qd7 {[%clk 0:02:55]} 13. Bf4 {[%clk 0:02:43]}  Na4 {[%clk 0:02:53]} 14. Nxa4 {[%clk 0:02:15]}  Qxa4 {[%clk 0:02:54]} 15. b3 {[%clk 0:02:16]}  Qa5 {[%clk 0:02:41]} 16. Bg5 {[%clk 0:02:11]}  h6 {[%clk 0:02:31]} 17. Bh4 {[%clk 0:02:11]}  Rfe8 {[%clk 0:02:27]} 18. Rac1 {[%clk 0:02:09]}  Qa3 {[%clk 0:02:01]} 19. Rxc8 {[%clk 0:02:06]}  Rxc8 {[%clk 0:02:02]} 20. Bxf6 {[%clk 0:01:55]}  Bxf6 {[%clk 0:02:01]} 21. e5 {[%clk 0:01:56]}  Be7 {[%clk 0:01:44]} 22. d5 {[%clk 0:01:55]}  exd5 {[%clk 0:01:40]} 23. e6 {[%clk 0:01:55]}  Rc1 {[%clk 0:01:35]} 24. exf7+ {[%clk 0:01:44]}  Kxf7 {[%clk 0:01:33]} 25. Nd4 {[%clk 0:01:43]}  Rxd1+ {[%clk 0:01:31]} 26. Qxd1 {[%clk 0:01:44]}  Bf6 {[%clk 0:01:20]} 27. Qh5+ {[%clk 0:01:38]}  Ke7 {[%clk 0:01:08]} 28. Nf5+ {[%clk 0:01:38]}  Kd8 {[%clk 0:01:02]} 29. g3 {[%clk 0:01:25]}  Qxa2 {[%clk 0:00:49]} 30. Nxd6 {[%clk 0:01:25]}  Kd7 {[%clk 0:00:49]} 31. Nxb7 {[%clk 0:01:03]}  Kc6 {[%clk 0:00:41]} 32. Qf7 {[%clk 0:01:01]}  Qa6 {[%clk 0:00:31]} 33. Nd8+ {[%clk 0:01:00]}  Bxd8 {[%clk 0:00:29]} 34. Qe6+ {[%clk 0:01:01]}  Kb7 {[%clk 0:00:25]} 35. Qxd5+ {[%clk 0:01:00]}  Kc8 {[%clk 0:00:23]} 36. Qa8+ {[%clk 0:00:59]}  Kd7 {[%clk 0:00:22]} 37. Qd5+ {[%clk 0:01:00]}  Qd6 {[%clk 0:00:20]} 38. Qb7+ {[%clk 0:00:59]}  Qc7 {[%clk 0:00:20]} 39. Qd5+ {[%clk 0:00:59]}  Ke7 {[%clk 0:00:18]} 40. Qg8 {[%clk 0:00:59]}  Qe5 {[%clk 0:00:16]} 41. Qc4 {[%clk 0:00:58]}  Bb6 {[%clk 0:00:16]} 42. Qb4+ {[%clk 0:00:58]}  Bc5 {[%clk 0:00:16]} 43. Qb7+ {[%clk 0:00:58]}  Kf8 {[%clk 0:00:17]} 44. Qf3+ {[%clk 0:00:59]}  Kg8 {[%clk 0:00:16]} 45. Kg2 {[%clk 0:00:57]}  Bb6 {[%clk 0:00:16]} 46. h4 {[%clk 0:00:57]}  Qf6 {[%clk 0:00:16]} 47. Qd5+ {[%clk 0:00:57]}  Qf7 {[%clk 0:00:16]} 48. Qa8+ {[%clk 0:00:56]}  Kh7 {[%clk 0:00:16]} 49. Qe4+ {[%clk 0:00:56]}  Qg6 {[%clk 0:00:17]} 50. Qf3 {[%clk 0:00:56]}  h5 {[%clk 0:00:17]} 51. Qd5 {[%clk 0:00:54]}  Qe8 {[%clk 0:00:15]} 52. Qf3 {[%clk 0:00:53]}  g6 {[%clk 0:00:15]} 53. Qb7+ {[%clk 0:00:53]}  Kh8 {[%clk 0:00:16]} 54. Qd5 {[%clk 0:00:52]}  Kg7 {[%clk 0:00:15]} 55. Qb7+ {[%clk 0:00:51]}  Qf7 {[%clk 0:00:15]} 56. Qf3 {[%clk 0:00:48]}  Qxf3+ {[%clk 0:00:15]} 57. Kxf3 {[%clk 0:00:49]}  Kf6 {[%clk 0:00:16]} 0-1


[Site "https://www.chess.com"]

[Event "Titled Tuesday Blitz March 29 Late 2022"]
[White "Song, Guannan Terry"]
[Black "Meza, Anahi"]
[WhiteFideId "2614189"]
[BlackFideId "111325"]
[WhiteElo "2115"]
[BlackElo "1968"]
[Result "1-0"]
[Round "11"]
[TimeControl "180+1"]
[Date "2022.03.30"]
[WhiteClock "0:01:15"]
[BlackClock "0:00:18"]

1. a3 {[%clk 0:03:00]}  e5 {[%clk 0:02:57]} 2. h3 {[%clk 0:02:59]}  d5 {[%clk 0:02:57]} 3. g4 {[%clk 0:02:58]}  Nc6 {[%clk 0:02:56]} 4. Bg2 {[%clk 0:02:58]}  h6 {[%clk 0:02:54]} 5. b4 {[%clk 0:02:59]}  Nf6 {[%clk 0:02:54]} 6. Bb2 {[%clk 0:02:58]}  Bd6 {[%clk 0:02:53]} 7. Nc3 {[%clk 0:02:56]}  Be6 {[%clk 0:02:50]} 8. e3 {[%clk 0:02:55]}  d4 {[%clk 0:02:45]} 9. Nb5 {[%clk 0:02:52]}  O-O {[%clk 0:02:42]} 10. Nxd6 {[%clk 0:02:50]}  Qxd6 {[%clk 0:02:41]} 11. Ne2 {[%clk 0:02:50]}  Rad8 {[%clk 0:02:28]} 12. Ng3 {[%clk 0:02:44]}  d3 {[%clk 0:02:20]} 13. cxd3 {[%clk 0:02:33]}  Qxd3 {[%clk 0:02:21]} 14. Bf1 {[%clk 0:02:22]}  Qd5 {[%clk 0:02:17]} 15. Qe2 {[%clk 0:02:10]}  Qb3 {[%clk 0:02:11]} 16. Bc3 {[%clk 0:02:07]}  Nd5 {[%clk 0:02:02]} 17. Qc4 {[%clk 0:02:04]}  Qa4 {[%clk 0:01:52]} 18. b5 {[%clk 0:01:55]}  Qxc4 {[%clk 0:01:43]} 19. Bxc4 {[%clk 0:01:56]}  Nce7 {[%clk 0:01:39]} 20. Bxe5 {[%clk 0:01:54]}  c6 {[%clk 0:01:18]} 21. O-O {[%clk 0:01:34]}  cxb5 {[%clk 0:01:05]} 22. Bxb5 {[%clk 0:01:35]}  Ng6 {[%clk 0:00:56]} 23. Bd4 {[%clk 0:01:33]}  Nh4 {[%clk 0:00:52]} 24. Be2 {[%clk 0:01:28]}  a6 {[%clk 0:00:49]} 25. f4 {[%clk 0:01:27]}  Ne7 {[%clk 0:00:42]} 26. Rac1 {[%clk 0:01:20]}  Rd7 {[%clk 0:00:41]} 27. Kf2 {[%clk 0:01:16]}  Neg6 {[%clk 0:00:33]} 28. f5 {[%clk 0:01:16]}  Nxf5 {[%clk 0:00:18]} 29. gxf5 {[%clk 0:01:15]} 1-0


[Site "https://www.chess.com"]

[Event "Titled Tuesday Blitz March 29 Late 2022"]
[White "Szente Varga, Fruzsina"]
[Black "Gatterer, Florian"]
[WhiteFideId "712264"]
[BlackFideId "811688"]
[WhiteElo "1994"]
[BlackElo "2218"]
[Result "1-0"]
[Round "11"]
[TimeControl "180+1"]
[Date "2022.03.30"]
[WhiteClock "0:02:12"]
[BlackClock "0:00:59"]

1. e4 {[%clk 0:03:00]}  d6 {[%clk 0:02:56]} 2. d4 {[%clk 0:02:54]}  Nf6 {[%clk 0:02:57]} 3. Nc3 {[%clk 0:02:52]}  g6 {[%clk 0:02:57]} 4. f3 {[%clk 0:02:52]}  a6 {[%clk 0:02:54]} 5. Be3 {[%clk 0:02:52]}  b5 {[%clk 0:02:54]} 6. Qd2 {[%clk 0:02:52]}  Nbd7 {[%clk 0:02:54]} 7. O-O-O {[%clk 0:02:52]}  Nb6 {[%clk 0:02:54]} 8. Bd3 {[%clk 0:02:51]}  b4 {[%clk 0:02:49]} 9. Nce2 {[%clk 0:02:51]}  a5 {[%clk 0:02:46]} 10. Kb1 {[%clk 0:02:51]}  Nfd7 {[%clk 0:02:32]} 11. h4 {[%clk 0:02:48]}  h5 {[%clk 0:02:31]} 12. g4 {[%clk 0:02:48]}  c5 {[%clk 0:02:29]} 13. dxc5 {[%clk 0:02:47]}  dxc5 {[%clk 0:02:29]} 14. Bb5 {[%clk 0:02:48]}  Qc7 {[%clk 0:02:17]} 15. gxh5 {[%clk 0:02:44]}  Rxh5 {[%clk 0:02:13]} 16. Nf4 {[%clk 0:02:44]}  Re5 {[%clk 0:01:46]} 17. h5 {[%clk 0:02:37]}  g5 {[%clk 0:01:46]} 18. Nd3 {[%clk 0:02:33]}  Re6 {[%clk 0:01:40]} 19. Nxc5 {[%clk 0:02:32]}  Rc6 {[%clk 0:01:08]} 20. Nxd7 {[%clk 0:02:22]}  Nxd7 {[%clk 0:01:02]} 21. Bxc6 {[%clk 0:02:21]}  Qxc6 {[%clk 0:01:01]} 22. h6 {[%clk 0:02:17]}  Bxh6 {[%clk 0:00:59]} 23. Ne2 {[%clk 0:02:12]} 1-0


[Site "https://www.chess.com"]

[Event "Titled Tuesday Blitz March 29 Late 2022"]
[White "Vasquez Schroeder, Rodrigo"]
[Black "Kosteniuk, Alexandra"]
[WhiteFideId "3400042"]
[BlackFideId "4128125"]
[WhiteElo "2561"]
[BlackElo "2469"]
[Result "1-0"]
[Round "11"]
[TimeControl "180+1"]
[Date "2022.03.29"]
[WhiteClock "0:01:35"]
[BlackClock "0:00:27"]

1. e4 {[%clk 0:02:56]}  e5 {[%clk 0:03:00]} 2. Nf3 {[%clk 0:02:56]}  Nc6 {[%clk 0:03:00]} 3. Bb5 {[%clk 0:02:57]}  a6 {[%clk 0:03:00]} 4. Ba4 {[%clk 0:02:57]}  Nf6 {[%clk 0:03:00]} 5. O-O {[%clk 0:02:58]}  Be7 {[%clk 0:03:00]} 6. Re1 {[%clk 0:02:58]}  b5 {[%clk 0:03:00]} 7. Bb3 {[%clk 0:02:59]}  O-O {[%clk 0:03:01]} 8. h3 {[%clk 0:02:59]}  Bb7 {[%clk 0:02:57]} 9. d3 {[%clk 0:02:59]}  d5 {[%clk 0:02:56]} 10. exd5 {[%clk 0:02:59]}  Nxd5 {[%clk 0:02:56]} 11. Nc3 {[%clk 0:03:00]}  Nxc3 {[%clk 0:02:51]} 12. bxc3 {[%clk 0:03:01]}  Bf6 {[%clk 0:02:48]} 13. Nd2 {[%clk 0:03:01]}  g6 {[%clk 0:02:43]} 14. Ne4 {[%clk 0:02:59]}  Bg7 {[%clk 0:02:44]} 15. Bg5 {[%clk 0:02:58]}  Qc8 {[%clk 0:02:35]} 16. Nf6+ {[%clk 0:02:40]}  Bxf6 {[%clk 0:02:34]} 17. Bxf6 {[%clk 0:02:40]}  Qf5 {[%clk 0:02:34]} 18. Bh4 {[%clk 0:02:38]}  Na5 {[%clk 0:02:29]} 19. Qg4 {[%clk 0:02:25]}  Nxb3 {[%clk 0:02:18]} 20. axb3 {[%clk 0:02:18]}  Qxg4 {[%clk 0:02:13]} 21. hxg4 {[%clk 0:02:17]}  f6 {[%clk 0:02:13]} 22. g5 {[%clk 0:02:14]}  fxg5 {[%clk 0:02:12]} 23. Bxg5 {[%clk 0:02:10]}  Rf5 {[%clk 0:02:12]} 24. Bh4 {[%clk 0:02:08]}  Re8 {[%clk 0:02:10]} 25. f3 {[%clk 0:02:04]}  g5 {[%clk 0:02:07]} 26. Bg3 {[%clk 0:02:03]}  h5 {[%clk 0:02:04]} 27. Re3 {[%clk 0:02:02]}  g4 {[%clk 0:01:45]} 28. fxg4 {[%clk 0:02:01]}  hxg4 {[%clk 0:01:44]} 29. Rae1 {[%clk 0:02:00]}  Kf7 {[%clk 0:01:34]} 30. Bxe5 {[%clk 0:01:55]}  c5 {[%clk 0:01:32]} 31. Bd6 {[%clk 0:01:53]}  Rxe3 {[%clk 0:01:18]} 32. Rxe3 {[%clk 0:01:54]}  Kg6 {[%clk 0:00:51]} 33. Re7 {[%clk 0:01:50]}  Rf7 {[%clk 0:00:51]} 34. Rxf7 {[%clk 0:01:39]}  Kxf7 {[%clk 0:00:51]} 35. Bxc5 {[%clk 0:01:39]}  a5 {[%clk 0:00:41]} 36. Kf2 {[%clk 0:01:38]}  Ke6 {[%clk 0:00:41]} 37. c4 {[%clk 0:01:38]}  Bc6 {[%clk 0:00:34]} 38. cxb5 {[%clk 0:01:36]}  Bxb5 {[%clk 0:00:34]} 39. c4 {[%clk 0:01:35]}  Bd7 {[%clk 0:00:33]} 40. g3 {[%clk 0:01:35]}  Bc6 {[%clk 0:00:33]} 41. Ke3 {[%clk 0:01:35]}  Bf3 {[%clk 0:00:33]} 42. Bb6 {[%clk 0:01:35]}  Bd1 {[%clk 0:00:32]} 43. Bxa5 {[%clk 0:01:35]}  Bxb3 {[%clk 0:00:32]} 44. Kd4 {[%clk 0:01:34]}  Kd6 {[%clk 0:00:33]} 45. Bd2 {[%clk 0:01:34]}  Kc6 {[%clk 0:00:31]} 46. Bf4 {[%clk 0:01:34]}  Bc2 {[%clk 0:00:28]} 47. Kc3 {[%clk 0:01:34]}  Bb1 {[%clk 0:00:28]} 48. d4 {[%clk 0:01:34]}  Be4 {[%clk 0:00:27]} 49. d5+ {[%clk 0:01:34]}  Kc5 {[%clk 0:00:27]} 50. Be3+ {[%clk 0:01:34]}  Kd6 {[%clk 0:00:27]} 51. Kd4 {[%clk 0:01:35]} 1-0


[Site "https://www.chess.com"]

[Event "Titled Tuesday Blitz March 29 Late 2022"]
[White "Vifleemskaia, Svetlana"]
[Black "Jensen, Matthew R"]
[WhiteFideId "4129490"]
[BlackFideId "2018110"]
[WhiteElo "1901"]
[BlackElo "2287"]
[Result "1-0"]
[Round "11"]
[TimeControl "180+1"]
[Date "2022.03.30"]
[WhiteClock "0:00:31"]
[BlackClock "0:00:10"]

1. d4 {[%clk 0:03:00]}  d5 {[%clk 0:02:58]} 2. c4 {[%clk 0:03:00]}  c6 {[%clk 0:02:59]} 3. cxd5 {[%clk 0:03:00]}  cxd5 {[%clk 0:02:59]} 4. Bf4 {[%clk 0:02:59]}  Nc6 {[%clk 0:02:59]} 5. e3 {[%clk 0:02:58]}  e5 {[%clk 0:02:54]} 6. Bxe5 {[%clk 0:02:50]}  Bb4+ {[%clk 0:02:53]} 7. Nc3 {[%clk 0:02:49]}  Nxe5 {[%clk 0:02:50]} 8. dxe5 {[%clk 0:02:49]}  Ne7 {[%clk 0:02:47]} 9. Bb5+ {[%clk 0:02:46]}  Bd7 {[%clk 0:02:47]} 10. Bxd7+ {[%clk 0:02:45]}  Qxd7 {[%clk 0:02:46]} 11. Ne2 {[%clk 0:02:45]}  O-O {[%clk 0:02:45]} 12. O-O {[%clk 0:02:45]}  Nc6 {[%clk 0:02:42]} 13. Qxd5 {[%clk 0:02:40]}  Qf5 {[%clk 0:02:36]} 14. Qe4 {[%clk 0:02:26]}  Qxe5 {[%clk 0:02:18]} 15. Qxe5 {[%clk 0:02:25]}  Nxe5 {[%clk 0:02:19]} 16. Rfd1 {[%clk 0:02:21]}  Rfd8 {[%clk 0:02:14]} 17. a3 {[%clk 0:02:17]}  Ba5 {[%clk 0:02:10]} 18. b4 {[%clk 0:02:16]}  Bb6 {[%clk 0:02:10]} 19. Nd5 {[%clk 0:02:14]}  Nc4 {[%clk 0:01:57]} 20. h3 {[%clk 0:02:08]}  Kf8 {[%clk 0:01:52]} 21. Nef4 {[%clk 0:02:06]}  g5 {[%clk 0:01:20]} 22. Nh5 {[%clk 0:02:02]}  Rd6 {[%clk 0:01:12]} 23. Ndf6 {[%clk 0:01:53]}  Rad8 {[%clk 0:00:59]} 24. Nxh7+ {[%clk 0:01:46]}  Ke7 {[%clk 0:00:58]} 25. Rxd6 {[%clk 0:01:39]}  Rxd6 {[%clk 0:00:58]} 26. Nxg5 {[%clk 0:01:37]}  Nxe3 {[%clk 0:00:53]} 27. Re1 {[%clk 0:01:28]}  Rd1 {[%clk 0:00:54]} 28. Rxd1 {[%clk 0:01:26]}  Nxd1 {[%clk 0:00:55]} 29. Ne4 {[%clk 0:01:22]}  f5 {[%clk 0:00:53]} 30. Nc5 {[%clk 0:01:22]}  Nc3 {[%clk 0:00:39]} 31. Nxb7 {[%clk 0:01:16]}  Nb1 {[%clk 0:00:37]} 32. a4 {[%clk 0:01:15]}  Nc3 {[%clk 0:00:36]} 33. a5 {[%clk 0:01:14]}  Bd4 {[%clk 0:00:36]} 34. Nf4 {[%clk 0:01:10]}  Ne4 {[%clk 0:00:31]} 35. Nd3 {[%clk 0:01:10]}  Kd7 {[%clk 0:00:31]} 36. Nbc5+ {[%clk 0:01:09]}  Kc6 {[%clk 0:00:30]} 37. g4 {[%clk 0:00:59]}  Ng5 {[%clk 0:00:25]} 38. Kg2 {[%clk 0:00:55]}  fxg4 {[%clk 0:00:21]} 39. hxg4 {[%clk 0:00:55]}  Bc3 {[%clk 0:00:20]} 40. f4 {[%clk 0:00:53]}  Nf7 {[%clk 0:00:21]} 41. Ne4 {[%clk 0:00:49]}  Bd4 {[%clk 0:00:18]} 42. Kf3 {[%clk 0:00:49]}  Kb5 {[%clk 0:00:19]} 43. g5 {[%clk 0:00:47]}  Bc3 {[%clk 0:00:13]} 44. g6 {[%clk 0:00:46]}  Nh6 {[%clk 0:00:12]} 45. Nd6+ {[%clk 0:00:45]}  Kc6 {[%clk 0:00:10]} 46. Nf7 {[%clk 0:00:41]}  Nxf7 {[%clk 0:00:09]} 47. gxf7 {[%clk 0:00:40]}  Bg7 {[%clk 0:00:09]} 48. Ke4 {[%clk 0:00:39]}  Kd7 {[%clk 0:00:10]} 49. Kf5 {[%clk 0:00:37]}  Ke7 {[%clk 0:00:10]} 50. Kg6 {[%clk 0:00:37]}  Bf8 {[%clk 0:00:10]} 51. Ne5 {[%clk 0:00:37]}  Ke6 {[%clk 0:00:10]} 52. Nc6 {[%clk 0:00:34]}  Kd7 {[%clk 0:00:10]} 53. Nxa7 {[%clk 0:00:33]}  Bxb4 {[%clk 0:00:10]} 54. a6 {[%clk 0:00:33]}  Kc7 {[%clk 0:00:09]} 55. Kg7 {[%clk 0:00:33]}  Kb6 {[%clk 0:00:09]} 56. f8=Q {[%clk 0:00:31]}  Bxf8+ {[%clk 0:00:10]} 57. Kxf8 {[%clk 0:00:31]} 1-0


[Site "https://www.chess.com"]

[Event "Titled Tuesday Blitz March 29 Late 2022"]
[White "Vine, Elzbieta"]
[Black "P., Komal Kishore"]
[WhiteFideId "1119320"]
[BlackFideId "5016703"]
[WhiteElo "1816"]
[BlackElo "2112"]
[Result "1-0"]
[Round "11"]
[TimeControl "180+1"]
[Date "2022.03.30"]
[WhiteClock "0:00:39"]
[BlackClock "0:01:11"]

1. e4 {[%clk 0:03:00]}  c6 {[%clk 0:02:59]} 2. d4 {[%clk 0:02:58]}  d5 {[%clk 0:03:00]} 3. e5 {[%clk 0:02:58]}  Bf5 {[%clk 0:02:59]} 4. h3 {[%clk 0:02:49]}  e6 {[%clk 0:02:58]} 5. g4 {[%clk 0:02:48]}  Be4 {[%clk 0:02:57]} 6. f3 {[%clk 0:02:47]}  Bg6 {[%clk 0:02:56]} 7. Ne2 {[%clk 0:02:43]}  Qh4+ {[%clk 0:02:53]} 8. Kd2 {[%clk 0:02:40]}  Nd7 {[%clk 0:02:46]} 9. Qe1 {[%clk 0:02:15]}  Qd8 {[%clk 0:02:38]} 10. f4 {[%clk 0:02:06]}  h5 {[%clk 0:02:28]} 11. Ng3 {[%clk 0:02:02]}  hxg4 {[%clk 0:02:23]} 12. Nc3 {[%clk 0:01:30]}  gxh3 {[%clk 0:02:13]} 13. Bxh3 {[%clk 0:01:29]}  c5 {[%clk 0:02:03]} 14. f5 {[%clk 0:01:23]}  exf5 {[%clk 0:01:38]} 15. e6 {[%clk 0:01:14]}  fxe6 {[%clk 0:01:31]} 16. Qxe6+ {[%clk 0:01:05]}  Ne7 {[%clk 0:01:28]} 17. Bxf5 {[%clk 0:00:43]}  Bxf5 {[%clk 0:01:16]} 18. Nxf5 {[%clk 0:00:40]}  Rxh1 {[%clk 0:01:11]} 19. Nd6# {[%clk 0:00:39]} 1-0


[Site "https://www.chess.com"]

[Event "Titled Tuesday Blitz March 29 Late 2022"]
[White "Vovk, Orest"]
[Black "Diaz Perez, Michel Alejandro"]
[WhiteFideId "14113490"]
[BlackFideId "3517179"]
[WhiteElo "2203"]
[BlackElo "2337"]
[Result "1-0"]
[Round "11"]
[TimeControl "180+1"]
[Date "2022.03.29"]
[WhiteClock "0:00:07"]
[BlackClock "0:00:13"]

1. h4 {[%clk 0:03:00]}  e5 {[%clk 0:02:59]} 2. h5 {[%clk 0:03:01]}  d5 {[%clk 0:02:57]} 3. h6 {[%clk 0:03:01]}  Nxh6 {[%clk 0:02:57]} 4. d4 {[%clk 0:03:01]}  e4 {[%clk 0:02:54]} 5. Bxh6 {[%clk 0:03:02]}  gxh6 {[%clk 0:02:55]} 6. e3 {[%clk 0:03:02]}  c5 {[%clk 0:02:52]} 7. Ne2 {[%clk 0:02:55]}  Nc6 {[%clk 0:02:52]} 8. Nbc3 {[%clk 0:02:53]}  Be6 {[%clk 0:02:48]} 9. Rh5 {[%clk 0:02:39]}  cxd4 {[%clk 0:02:30]} 10. Nxd4 {[%clk 0:02:38]}  Bg7 {[%clk 0:02:31]} 11. Nce2 {[%clk 0:02:17]}  Qa5+ {[%clk 0:02:24]} 12. c3 {[%clk 0:02:16]}  Qb6 {[%clk 0:02:23]} 13. Qb3 {[%clk 0:02:14]}  Ne5 {[%clk 0:02:18]} 14. Nf4 {[%clk 0:02:11]}  Qxb3 {[%clk 0:02:06]} 15. axb3 {[%clk 0:02:11]}  Ke7 {[%clk 0:02:06]} 16. Ra5 {[%clk 0:02:04]}  Rhd8 {[%clk 0:02:04]} 17. Nf5+ {[%clk 0:01:57]}  Kf6 {[%clk 0:01:58]} 18. Nxg7 {[%clk 0:01:52]}  Bg4 {[%clk 0:01:58]} 19. Rxe5 {[%clk 0:01:25]}  Kxe5 {[%clk 0:01:56]} 20. Be2 {[%clk 0:01:26]}  Bxe2 {[%clk 0:01:49]} 21. Kxe2 {[%clk 0:01:25]}  b6 {[%clk 0:01:48]} 22. Rb5 {[%clk 0:01:24]}  Rd6 {[%clk 0:01:45]} 23. c4 {[%clk 0:01:22]}  a6 {[%clk 0:01:35]} 24. Rxd5+ {[%clk 0:01:18]}  Rxd5 {[%clk 0:01:36]} 25. cxd5 {[%clk 0:01:16]}  Rc8 {[%clk 0:01:22]} 26. Kd2 {[%clk 0:01:16]}  b5 {[%clk 0:01:22]} 27. Ngh5 {[%clk 0:01:10]}  a5 {[%clk 0:01:23]} 28. Ng3 {[%clk 0:01:09]}  a4 {[%clk 0:01:24]} 29. bxa4 {[%clk 0:01:09]}  bxa4 {[%clk 0:01:24]} 30. Nge2 {[%clk 0:01:09]}  Rb8 {[%clk 0:01:25]} 31. Kc2 {[%clk 0:01:09]}  Rb4 {[%clk 0:01:20]} 32. Nd4 {[%clk 0:01:05]}  Rc4+ {[%clk 0:01:18]} 33. Kd2 {[%clk 0:01:04]}  Rc8 {[%clk 0:01:13]} 34. Nc6+ {[%clk 0:01:02]}  Kd6 {[%clk 0:01:13]} 35. Kc3 {[%clk 0:01:01]}  Rc7 {[%clk 0:01:09]} 36. Kd4 {[%clk 0:00:59]}  Rb7 {[%clk 0:01:09]} 37. Na5 {[%clk 0:00:54]}  Rxb2 {[%clk 0:00:43]} 38. Nc4+ {[%clk 0:00:47]}  Ke7 {[%clk 0:00:43]} 39. d6+ {[%clk 0:00:38]}  Kd8 {[%clk 0:00:43]} 40. Nd5 {[%clk 0:00:21]}  Rxf2 {[%clk 0:00:40]} 41. Ndb6 {[%clk 0:00:18]}  Rxg2 {[%clk 0:00:38]} 42. Nxa4 {[%clk 0:00:17]}  Rg1 {[%clk 0:00:36]} 43. Nc5 {[%clk 0:00:10]}  Rd1+ {[%clk 0:00:30]} 44. Ke5 {[%clk 0:00:10]}  Rc1 {[%clk 0:00:29]} 45. Kd5 {[%clk 0:00:08]}  Rd1+ {[%clk 0:00:29]} 46. Kc6 {[%clk 0:00:08]}  h5 {[%clk 0:00:16]} 47. Ne5 {[%clk 0:00:08]}  h4 {[%clk 0:00:14]} 48. Nxf7+ {[%clk 0:00:08]}  Ke8 {[%clk 0:00:15]} 49. Ng5 {[%clk 0:00:09]}  h6 {[%clk 0:00:15]} 50. Nh3 {[%clk 0:00:08]}  Rc1 {[%clk 0:00:12]} 51. d7+ {[%clk 0:00:07]}  Ke7 {[%clk 0:00:12]} 52. Nf4 {[%clk 0:00:08]}  Rc3 {[%clk 0:00:10]} 53. Nd5+ {[%clk 0:00:07]}  Kd8 {[%clk 0:00:04]} 54. Nxc3 {[%clk 0:00:07]}  h3 {[%clk 0:00:05]} 55. N5xe4 {[%clk 0:00:08]}  h2 {[%clk 0:00:04]} 56. Nf2 {[%clk 0:00:08]}  h5 {[%clk 0:00:04]} 57. Nh1 {[%clk 0:00:09]}  h4 {[%clk 0:00:05]} 58. e4 {[%clk 0:00:09]}  h3 {[%clk 0:00:05]} 59. e5 {[%clk 0:00:09]}  Ke7 {[%clk 0:00:06]} 60. e6 {[%clk 0:00:09]}  Kd8 {[%clk 0:00:06]} 61. Nb5 {[%clk 0:00:08]}  Ke7 {[%clk 0:00:07]} 62. Kc7 {[%clk 0:00:08]}  Kxe6 {[%clk 0:00:08]} 63. d8=Q {[%clk 0:00:08]}  Ke5 {[%clk 0:00:09]} 64. Qd6+ {[%clk 0:00:08]}  Ke4 {[%clk 0:00:10]} 65. Qxh2 {[%clk 0:00:09]}  Kd3 {[%clk 0:00:10]} 66. Qxh3+ {[%clk 0:00:09]}  Kc4 {[%clk 0:00:11]} 67. Qc3+ {[%clk 0:00:09]}  Kxb5 {[%clk 0:00:12]} 68. Qc6+ {[%clk 0:00:08]}  Ka5 {[%clk 0:00:12]} 69. Qb7 {[%clk 0:00:08]}  Ka4 {[%clk 0:00:12]} 70. Nf2 {[%clk 0:00:08]}  Ka3 {[%clk 0:00:13]} 71. Nd3 {[%clk 0:00:07]}  Ka4 {[%clk 0:00:13]} 72. Qb4# {[%clk 0:00:07]} 1-0


[Site "https://www.chess.com"]